bitfinex-derivatives/quotes_BNBF0:USTF0_20250608
["timestamp","ask_amount","ask_price","bid_price","bid_amount"]
[1749376745490,0.30882307,647.62,647.08,1.54008102]
[1749376748394,3.19113577,647.62,647.08,1.54008102]
[1749376748594,1.67240249,647.61,647.08,1.54008102]
[1749376748794,0.30882307,647.62,647.08,1.54008102]
[1749376750297,0.30882307,647.62,646.97,1.54008102]
[1749376750494,0.30882307,647.62,646.94,1.54008102]
[1749376751299,0.30882307,647.62,646.93,1.54008102]
[1749376751493,0.30882307,647.62,646.94,1.54008102]
[1749376754298,0.30882307,647.62,646.93,1.54008102]
[1749376754799,0.30882307,647.62,646.92,1.54008102]
[1749376757001,1.97942243,647.62,646.92,1.54008102]
[1749376757304,0.30882307,647.62,646.92,1.54008102]
[1749376757502,0.30882307,647.62,646.91,1.54008102]
[1749376760208,1.14867373,647.6,646.99,1.54008102]
[1749376760405,0.30883738,647.59,646.99,1.54008102]
[1749376765005,0.30883738,647.59,646.98,1.54008102]
[1749376765205,1.45751111,647.59,646.98,1.54008102]
[1749376765907,1.45751111,647.59,646.97,1.54008102]
[1749376766106,4.33351457,647.59,646.97,1.54008102]
[1749376766405,1.14867373,647.57,646.96,1.54008102]
[1749376766608,0.30885168,647.56,646.97,1.54008102]
[1749376767308,0.87105363,647.56,646.96,1.54008102]
[1749376767608,3.18471171,647.56,646.91,1.54008102]
[1749376767805,1.66876029,647.55,646.91,1.54008102]
[1749376768009,0.30886122,647.54,646.91,1.54008102]
[1749376768711,0.30886122,647.54,646.9,1.54008102]
[1749376768906,1.97747994,647.54,646.9,1.54008102]
[1749376769107,0.30886122,647.54,646.91,1.54008102]
[1749376769515,0.30886122,647.54,646.9,1.54008102]
[1749376770209,0.30886122,647.54,646.91,1.54008102]
[1749376770413,0.8708142,647.54,646.91,1.54008102]
[1749376770609,0.30886122,647.54,646.91,1.54008102]
[1749376774411,3.18894278,647.54,646.91,1.54008102]
[1749376774610,2.88008156,647.53,646.91,1.54008102]
[1749376774815,0.87095675,647.52,646.91,1.54008102]
[1749376775009,0.30887553,647.51,646.91,1.54008102]
[1749376776513,0.30887553,647.51,646.92,1.54008102]
[1749376777314,0.30887553,647.51,646.94,1.54008102]
[1749376779913,0.30887553,647.51,646.92,1.54008102]
[1749376780118,0.30887553,647.51,646.93,1.54008102]
[1749376780515,0.30887553,647.51,646.92,1.54008102]
[1749376781521,0.30887553,647.51,646.91,1.54008102]
[1749376782220,0.30887553,647.51,646.92,1.54008102]
[1749376783621,0.30887553,647.51,646.91,1.54008102]
[1749376783918,0.30887553,647.51,646.92,1.54008102]
[1749376784726,0.30887553,647.51,646.87,1.54008102]
[1749376785122,0.30887553,647.51,646.88,1.54008102]
[1749376785520,0.30887553,647.51,646.87,1.54008102]
[1749376786226,0.30887553,647.51,646.88,1.54008102]
[1749376789824,0.30887553,647.51,646.89,1.54008102]
[1749376792028,0.30887553,647.51,646.88,1.54008102]
[1749376794525,0.30887553,647.51,646.93,1.54008102]
[1749376795928,0.30887553,647.51,646.75,1.54008102]
[1749376796135,0.30887553,647.51,646.77,1.54008102]
[1749376797132,0.30887553,647.51,646.78,1.54008102]
[1749376800934,0.30887553,647.51,646.59,2.31012154]
[1749376800935,0.30887553,647.51,646.79,1.54008102]
[1749376801930,0.30887553,647.51,646.81,1.54008102]
[1749376803132,0.30887553,647.51,646.82,1.54008102]
[1749376803328,0.30887553,647.51,646.79,1.54008102]
[1749376804836,0.30887553,647.51,646.8,1.54008102]
[1749376805834,0.30887553,647.51,646.89,1.54008102]
[1749376806434,0.30887553,647.51,646.74,2.31012154]
[1749376806435,0.30887553,647.51,646.88,1.54008102]
[1749376807036,0.30887553,647.51,646.92,1.54008102]
[1749376807237,0.30887553,647.51,646.93,1.54008102]
[1749376807736,0.30887553,647.51,646.94,1.54008102]
[1749376809336,0.30887553,647.51,646.95,1.54008102]
[1749376811537,0.30887553,647.51,646.96,1.54008102]
[1749376811738,0.30887553,647.51,646.95,1.54008102]
[1749376812137,0.30887553,647.51,646.96,1.54008102]
[1749376813145,0.30887553,647.51,646.99,1.54008102]
[1749376816247,0.30887553,647.51,647.0,1.54008102]
[1749376816445,0.30887553,647.51,647.01,1.54008102]
[1749376816942,0.30887553,647.51,647.05,1.54008102]
[1749376817546,0.30887553,647.51,647.06,1.54008102]
[1749376818346,1.5240778,647.51,647.06,1.54008102]
[1749376818642,0.30887553,647.51,647.08,1.54008102]
[1749376818944,1.42090689,647.51,647.08,1.54008102]
[1749376819144,0.30887553,647.51,647.06,1.54008102]
[1749376819448,0.30887553,647.51,647.05,1.54008102]
[1749376819650,0.30887553,647.51,647.04,1.54008102]
[1749376819848,0.30887553,647.51,647.05,1.54008102]
[1749376820045,0.30887553,647.51,647.04,1.54008102]
[1749376820245,0.30887553,647.51,647.0,1.54008102]
[1749376821050,0.30887553,647.51,647.01,1.54008102]
[1749376822656,0.30887553,647.51,647.0,1.54008102]
[1749376824450,0.30887553,647.51,646.99,1.54008102]
[1749376825155,0.30887553,647.51,646.97,1.54008102]
[1749376825352,0.30887553,647.51,646.96,1.54008102]
[1749376825653,0.30887553,647.51,646.94,1.54008102]
[1749376826058,2.63786112,647.51,646.94,1.54008102]
[1749376826253,2.8924954,647.5,646.94,1.54008102]
[1749376826457,2.08890827,647.49,646.94,1.54008102]
[1749376826655,3.20138518,647.48,646.94,1.54008102]
[1749376826854,3.20138996,647.47,646.94,1.54008102]
[1749376827056,3.20139473,647.46,646.94,1.54008102]
[1749376827258,1.98466879,647.45,646.94,1.54008102]
[1749376827456,0.30890893,647.44,646.94,1.54008102]
[1749376829156,0.30890893,647.44,645.99,5.32102317]
[1749376829157,0.30890893,647.44,646.95,1.54008102]
[1749376829960,0.30890893,647.44,646.98,1.54008102]
[1749376830962,1.42071228,647.44,646.98,1.54008102]
[1749376831158,0.30890893,647.44,646.98,1.54008102]
[1749376831462,0.30890893,647.44,646.97,1.54008102]
[1749376832058,0.30890893,647.44,646.98,1.54008102]
[1749376832557,0.30890893,647.44,646.99,1.54008102]
[1749376832758,0.30890893,647.44,647.01,1.54008102]
[1749376835662,0.30890893,647.44,646.81,1.54008102]
[1749376836065,3.19936044,647.44,646.81,1.54008102]
[1749376836265,3.19936044,647.44,645.95,7.62523817]
[1749376836266,1.77892981,647.43,646.98,1.54008102]
[1749376836462,0.30890893,647.44,646.98,1.54008102]
[1749376840464,0.30890893,647.44,646.97,1.54008102]
[1749376844668,1.98266804,647.44,646.97,1.54008102]
[1749376844868,0.30890893,647.44,646.97,1.54008102]
[1749376845372,0.30890893,647.44,646.99,1.54008102]
[1749376845768,0.30890893,647.44,646.98,1.54008102]
[1749376846270,0.30890893,647.44,646.99,1.54008102]
[1749376847573,0.30890893,647.44,647.0,1.54008102]
[1749376849276,0.30890893,647.44,646.86,1.54008102]
[1749376849874,3.19574207,647.44,646.86,1.54008102]
[1749376850171,2.32398969,647.43,646.86,1.54008102]
[1749376850472,2.08558658,647.42,646.86,1.54008102]
[1749376850771,0.30892324,647.41,646.85,1.54008102]
[1749376852777,0.30892324,647.41,646.81,1.54008102]
[1749376852980,0.30892324,647.41,646.82,1.54008102]
[1749376853380,0.30892324,647.41,646.81,1.54008102]
[1749376854578,0.30892324,647.41,646.8,1.54008102]
[1749376856178,0.30892324,647.41,646.77,1.54008102]
[1749376857376,0.30892324,647.41,646.76,1.54008102]
[1749376857779,0.30892324,647.41,646.79,1.54008102]
[1749376862679,0.30892324,647.41,646.8,1.54008102]
[1749376864481,0.30892324,647.41,646.79,1.54008102]
[1749376864679,0.30892324,647.41,646.8,1.54008102]
[1749376865284,0.30892324,647.41,646.79,1.54008102]
[1749376865981,0.30892324,647.41,646.9,1.54008102]
[1749376867380,0.30892324,647.41,645.26,7.62523817]
[1749376867381,0.30892324,647.41,646.89,1.54008102]
[1749376868181,0.30892324,647.41,646.9,1.54008102]
[1749376871586,0.30892324,647.41,646.86,1.54008102]
[1749376877587,0.30892324,647.41,646.83,1.54008102]
[1749376877788,0.30892324,647.41,646.88,1.54008102]
[1749376877993,0.30892324,647.41,646.9,1.54008102]
[1749376878488,0.30892324,647.41,646.91,1.54008102]
[1749376881491,0.30892324,647.41,646.92,1.54008102]
[1749376887501,0.30892324,647.41,646.98,1.54008102]
[1749376887802,0.30892324,647.41,646.99,1.54008102]
[1749376889707,0.30892324,647.41,646.98,1.54008102]
[1749376889906,0.30892324,647.41,646.99,1.54008102]
[1749376891404,0.30892324,647.41,647.01,1.54008102]
[1749376891605,0.30892324,647.41,647.02,1.54008102]
[1749376895909,0.30892324,647.41,647.0,1.54008102]
[1749376896307,0.30892324,647.41,646.99,1.54008102]
[1749376896910,0.30892324,647.41,646.98,1.54008102]
[1749376899614,0.30892324,647.41,647.0,1.54008102]
[1749376901517,0.30892324,647.41,646.99,1.54008102]
[1749376902619,0.30892324,647.41,646.98,1.54008102]
[1749376904219,0.30892324,647.41,646.97,1.54008102]
[1749376904518,0.30892324,647.41,646.98,1.54008102]
[1749376905320,0.30892324,647.41,646.97,1.54008102]
[1749376905717,0.30892324,647.41,646.99,1.54008102]
[1749376906016,0.30892324,647.41,647.0,1.54008102]
[1749376908022,0.30892324,647.41,646.99,1.54008102]
[1749376908323,0.30892324,647.41,647.0,1.54008102]
[1749376908523,0.30892324,647.41,646.99,1.54008102]
[1749376909019,0.30892324,647.41,646.93,1.54008102]
[1749376909522,0.30892324,647.41,646.94,1.54008102]
[1749376909918,0.30892324,647.41,646.93,1.54008102]
[1749376911518,0.30892324,647.41,646.94,1.54008102]
[1749376917628,0.30892324,647.41,646.93,1.54008102]
[1749376918327,0.30892324,647.41,646.91,1.54008102]
[1749376918631,0.30892324,647.41,646.87,1.54008102]
[1749376918928,0.30892324,647.41,646.88,1.54008102]
[1749376921730,0.87040736,647.41,646.88,1.54008102]
[1749376921927,0.30892324,647.41,646.88,1.54008102]
[1749376924834,0.30892324,647.41,646.83,1.54008102]
[1749376925033,1.97855758,647.41,646.83,1.54008102]
[1749376925232,0.30892324,647.41,646.82,1.54008102]
[1749376926731,3.18814763,647.41,646.82,1.54008102]
[1749376926937,0.30892324,647.41,646.82,1.54008102]
[1749376930038,3.18854219,647.41,646.82,1.54008102]
[1749376930235,2.87961895,647.4,646.82,1.54008102]
[1749376930439,2.08071877,647.39,646.82,1.54008102]
[1749376930640,3.18871754,647.38,646.82,1.54008102]
[1749376930838,2.08088813,647.37,646.82,1.54008102]
[1749376931138,2.08124767,647.36,646.82,1.54008102]
[1749376931337,0.87080096,647.35,646.82,1.54008102]
[1749376931535,0.30895188,647.35,646.82,1.54008102]
[1749376934641,0.30895188,647.35,646.87,1.54008102]
[1749376935638,0.26897095,647.24,646.87,1.54008102]
[1749376936845,0.26897095,647.24,646.8,1.54008102]
[1749376938441,0.26897095,647.24,646.79,1.54008102]
[1749376939143,0.26897095,647.24,646.8,1.54008102]
[1749376939340,0.26897095,647.24,646.79,1.54008102]
[1749376939740,0.26897095,647.24,646.8,1.54008102]
[1749376940441,0.26897095,647.24,646.78,1.54008102]
[1749376943547,0.26897095,647.24,646.76,1.54008102]
[1749376946750,0.26897095,647.24,646.79,1.54008102]
[1749376947150,0.26897095,647.24,646.8,1.54008102]
[1749376950449,0.26897095,647.24,646.67,1.54008102]
[1749376950653,0.26897095,647.24,646.63,1.54008102]
[1749376950853,0.26897095,647.24,646.61,1.54008102]
[1749376951047,0.26897095,647.24,646.63,1.54008102]
[1749376951453,0.26897095,647.24,646.62,1.54008102]
[1749376951850,0.26897095,647.24,646.63,1.54008102]
[1749376952053,0.26897095,647.24,646.62,1.54008102]
[1749376953253,0.26897095,647.24,646.63,1.54008102]
[1749376953658,0.26897095,647.24,646.62,1.54008102]
[1749376958664,0.26897095,647.24,646.67,1.54008102]
[1749376960363,0.26897095,647.24,646.76,1.54008102]
[1749376960562,0.26897095,647.24,646.77,1.54008102]
[1749376960763,0.26897095,647.24,646.76,1.54008102]
[1749376961768,0.26897095,647.24,646.8,1.54008102]
[1749376962665,0.26897095,647.24,646.81,1.54008102]
[1749376963064,0.26897095,647.24,646.82,1.54008102]
[1749376963266,0.26897095,647.24,646.83,1.54008102]
[1749376963664,0.26897095,647.24,646.85,1.54008102]
[1749376964066,0.26897095,647.24,646.86,1.54008102]
[1749376964264,0.26897095,647.24,646.85,1.54008102]
[1749376964465,0.26897095,647.24,646.86,1.54008102]
[1749376964967,0.26897095,647.24,646.85,1.54008102]
[1749376966066,0.26897095,647.24,646.9,1.54008102]
[1749376966366,0.26897095,647.24,646.92,1.54008102]
[1749376966865,0.26897095,647.24,646.93,1.54008102]
[1749376968068,0.26897095,647.24,646.94,1.54008102]
[1749376968368,0.26897095,647.24,646.89,1.54008102]
[1749376971368,0.26897095,647.24,646.9,1.54008102]
[1749376975368,0.26897095,647.24,646.55,1.54008102]
[1749376975572,0.26897095,647.24,646.53,1.54008102]
[1749376976470,0.26897095,647.24,646.52,1.54008102]
[1749376978276,0.26897095,647.24,646.53,1.54008102]
[1749376985281,0.26897095,647.24,646.71,1.54008102]
[1749376985480,0.26897095,647.24,646.74,1.54008102]
[1749376985679,0.26897095,647.24,646.68,1.54008102]
[1749376986683,0.26897095,647.24,646.69,1.54008102]
[1749376989882,0.26897095,647.24,646.71,1.54008102]
[1749376990889,0.26897095,647.24,646.72,1.54008102]
[1749376992186,0.26897095,647.24,646.73,1.54008102]
[1749376992488,0.26897095,647.24,646.74,1.54008102]
[1749376993986,0.26897095,647.24,646.75,1.54008102]
[1749376995687,0.26897095,647.24,646.82,1.54008102]
[1749376995886,0.26897095,647.24,646.83,1.54008102]
[1749376996586,0.26897095,647.24,646.82,1.54008102]
[1749376996888,0.26897095,647.24,646.83,1.54008102]
[1749376997392,0.26897095,647.24,646.84,1.54008102]
[1749376998287,0.26897095,647.24,646.87,1.54008102]
[1749376998986,0.26897095,647.24,646.88,1.54008102]
[1749377000386,0.26897095,647.24,646.73,2.31012154]
[1749377000387,0.26897095,647.24,646.87,1.54008102]
[1749377002394,0.26897095,647.24,646.89,1.54008102]
[1749377003597,0.26897095,647.24,646.9,1.54008102]
[1749377004291,0.26897095,647.24,646.93,1.54008102]
[1749377005293,0.26897095,647.24,646.92,1.54008102]
[1749377005893,0.26897095,647.24,646.93,1.54008102]
[1749377008892,0.26897095,647.24,646.92,1.54008102]
[1749377009091,0.26897095,647.24,646.8,2.31012154]
[1749377009092,0.26897095,647.24,646.93,1.54008102]
[1749377011901,0.26897095,647.24,646.91,1.54008102]
[1749377015299,0.26897095,647.24,646.93,1.54008102]
[1749377015496,0.26897095,647.24,646.96,1.54008102]
[1749377016704,0.26897095,647.24,646.97,1.54008102]
[1749377017303,0.26897095,647.24,646.96,1.54008102]
[1749377018909,0.26897095,647.24,646.99,1.54008102]
[1749377019408,0.26897095,647.24,646.98,1.54008102]
[1749377022709,0.26897095,647.24,646.97,1.54008102]
[1749377022912,0.26897095,647.24,646.98,1.54008102]
[1749377023416,0.26897095,647.24,646.97,1.54008102]
[1749377024414,0.26897095,647.24,646.98,1.54008102]
[1749377025821,0.26897095,647.24,646.99,1.54008102]
[1749377026419,0.26897095,647.24,646.98,1.54008102]
[1749377027125,0.26897095,647.24,646.97,1.54008102]
[1749377028124,0.26897095,647.24,646.96,1.54008102]
[1749377031726,0.26897095,647.24,646.98,1.54008102]
[1749377032429,0.26897095,647.24,646.99,1.54008102]
[1749377032827,0.26897095,647.24,647.0,1.54008102]
[1749377033325,0.26897095,647.24,646.99,1.54008102]
[1749377037031,0.26897095,647.24,647.0,1.54008102]
[1749377039236,0.26897095,647.24,647.01,1.54008102]
[1749377040232,0.26897095,647.24,646.99,1.54008102]
[1749377040534,0.26897095,647.24,646.95,1.54008102]
[1749377040733,0.26897095,647.24,646.94,1.54008102]
[1749377041037,0.26897095,647.24,646.93,1.54008102]
[1749377041533,0.26897095,647.24,646.9,1.54008102]
[1749377042132,0.26897095,647.24,646.89,1.54008102]
[1749377042337,0.26897095,647.24,646.9,1.54008102]
[1749377042633,0.26897095,647.24,646.89,1.54008102]
[1749377044237,0.26897095,647.24,646.87,1.54008102]
[1749377046240,0.26897095,647.24,646.86,1.54008102]
[1749377046433,0.26897095,647.24,646.85,1.54008102]
[1749377046835,0.26897095,647.24,646.86,1.54008102]
[1749377047039,0.26897095,647.24,646.84,1.54008102]
[1749377047237,0.26897095,647.24,646.85,1.54008102]
[1749377049934,0.26897095,647.24,646.86,1.54008102]
[1749377050139,0.26897095,647.24,646.23,3.79597196]
[1749377050140,0.26897095,647.24,646.87,1.54008102]
[1749377050538,0.26897095,647.24,646.88,1.54008102]
[1749377050734,0.26897095,647.24,646.89,1.54008102]
[1749377051136,0.26897095,647.24,646.9,1.54008102]
[1749377051435,0.26897095,647.24,646.09,5.32102317]
[1749377051436,0.26897095,647.24,646.91,1.54008102]
[1749377053343,0.26897095,647.24,646.92,1.54008102]
[1749377053539,0.26897095,647.24,646.91,1.54008102]
[1749377054138,0.26897095,647.24,646.93,1.54008102]
[1749377056544,0.26897095,647.24,646.94,1.54008102]
[1749377063749,0.26897095,647.24,646.9,1.54008102]
[1749377064546,0.26897095,647.24,646.91,1.54008102]
[1749377068247,0.26897095,647.24,646.9,1.54008102]
[1749377068752,0.26897095,647.24,646.91,1.54008102]
[1749377070453,0.26897095,647.24,646.9,1.54008102]
[1749377073557,0.26897095,647.24,646.93,1.54008102]
[1749377074258,0.26897095,647.24,646.94,1.54008102]
[1749377075156,0.26897095,647.24,646.93,1.54008102]
[1749377076253,0.26897095,647.24,646.92,1.54008102]
[1749377077057,0.26897095,647.24,646.93,1.54008102]
[1749377077254,0.26897095,647.24,646.92,1.54008102]
[1749377077656,0.26897095,647.24,646.93,1.54008102]
[1749377077858,0.26897095,647.24,646.92,1.54008102]
[1749377078461,0.26897095,647.24,646.93,1.54008102]
[1749377078758,0.26897095,647.24,646.92,1.54008102]
[1749377079258,0.26897095,647.24,646.93,1.54008102]
[1749377082162,0.26897095,647.24,646.94,1.54008102]
[1749377085359,0.26897095,647.24,646.95,1.54008102]
[1749377090162,0.26897095,647.24,646.92,1.54008102]
[1749377090567,0.26897095,647.24,646.82,1.54008102]
[1749377091367,0.26897095,647.24,646.81,1.54008102]
[1749377092067,0.26897095,647.24,646.8,1.54008102]
[1749377092363,0.26897095,647.24,646.81,1.54008102]
[1749377093370,0.26897095,647.24,646.82,1.54008102]
[1749377094466,0.26897095,647.24,646.83,1.54008102]
[1749377094667,0.26897095,647.24,646.82,1.54008102]
[1749377095466,0.26897095,647.24,646.81,1.54008102]
[1749377096065,0.26897095,647.24,646.78,1.54008102]
[1749377096271,0.26897095,647.24,646.76,1.54008102]
[1749377097573,0.26897095,647.24,646.77,1.54008102]
[1749377097872,0.26897095,647.24,646.76,1.54008102]
[1749377098473,0.26897095,647.24,646.6,2.31012154]
[1749377098474,0.26897095,647.24,646.77,1.54008102]
[1749377100072,0.26897095,647.24,646.78,1.54008102]
[1749377100371,0.26897095,647.24,646.83,1.54008102]
[1749377101775,0.26897095,647.24,646.82,1.54008102]
[1749377102771,0.26897095,647.24,646.83,1.54008102]
[1749377103375,0.26897095,647.24,646.82,1.54008102]
[1749377104373,0.26897095,647.24,646.84,1.54008102]
[1749377106377,0.26897095,647.24,646.86,1.54008102]
[1749377107377,0.26897095,647.24,646.85,1.54008102]
[1749377107875,0.26897095,647.24,646.07,0.26897095]
[1749377107876,0.26897095,647.24,646.87,1.54008102]
[1749377109278,0.26897095,647.24,646.88,1.54008102]
[1749377110480,0.26897095,647.24,646.87,1.54008102]
[1749377111476,0.26897095,647.24,646.89,1.54008102]
[1749377111681,0.26897095,647.24,646.88,1.54008102]
[1749377112280,0.26897095,647.24,646.87,1.54008102]
[1749377112583,0.26897095,647.24,646.88,1.54008102]
[1749377115778,0.26897095,647.24,646.89,1.54008102]
[1749377130897,0.26897095,647.24,646.88,1.54008102]
[1749377131998,0.26897095,647.24,646.89,1.54008102]
[1749377133203,0.26897095,647.24,646.88,1.54008102]
[1749377133401,0.26897095,647.24,646.89,1.54008102]
[1749377133600,0.26897095,647.24,646.88,1.54008102]
[1749377134301,0.26897095,647.24,646.89,1.54008102]
[1749377135597,0.30895188,647.35,646.89,1.54008102]
[1749377136000,0.26897199,647.16,646.89,1.54008102]
[1749377136201,0.30895188,647.35,646.89,1.54008102]
[1749377136602,0.26897199,647.1,646.89,1.54008102]
[1749377136802,0.30895188,647.35,646.89,1.54008102]
[1749377137000,0.26896576,647.24,646.89,1.54008102]
[1749377141812,0.26896576,647.24,646.9,1.54008102]
[1749377142013,0.26896576,647.24,646.89,1.54008102]
[1749377142211,0.26896576,647.24,646.9,1.54008102]
[1749377146211,0.26896576,647.24,646.8,2.31012154]
[1749377146212,0.26896576,647.24,646.91,1.54008102]
[1749377146614,0.26896576,647.24,646.9,1.54008102]
[1749377146815,0.26896576,647.24,646.91,1.54008102]
[1749377150220,0.26896576,647.24,646.92,1.54008102]
[1749377154125,0.26896576,647.24,646.93,1.54008102]
[1749377155327,0.26896576,647.24,646.94,1.54008102]
[1749377157533,0.26896576,647.24,646.92,1.54008102]
[1749377160738,0.26896576,647.24,646.93,1.54008102]
[1749377164741,0.26896576,647.24,646.39,3.79597196]
[1749377164742,0.26896576,647.24,646.94,1.54008102]
[1749377165540,0.26896576,647.24,646.85,1.54008102]
[1749377166136,0.26896576,647.24,646.83,1.54008102]
[1749377166835,0.26896576,647.24,646.82,1.54008102]
[1749377167337,0.26896576,647.24,646.83,1.54008102]
[1749377169738,0.26896576,647.24,646.82,1.54008102]
[1749377175542,0.26896576,647.24,646.86,1.54008102]
[1749377175944,0.26896576,647.24,646.88,1.54008102]
[1749377176845,0.26896576,647.24,646.89,1.54008102]
[1749377177047,0.26896576,647.24,646.9,1.54008102]
[1749377177245,0.26896576,647.24,646.89,1.54008102]
[1749377178248,0.26896576,647.24,646.9,1.54008102]
[1749377179253,0.26896576,647.24,646.85,1.54008102]
[1749377179650,0.26896576,647.24,646.86,1.54008102]
[1749377180255,0.26896576,647.24,646.85,1.54008102]
[1749377184158,0.26896576,647.24,646.87,1.54008102]
[1749377184660,0.26896576,647.24,646.86,1.54008102]
[1749377185257,0.26896576,647.24,646.87,1.54008102]
[1749377189159,0.26896576,647.24,646.89,1.54008102]
[1749377190158,0.26896576,647.24,646.9,1.54008102]
[1749377194064,0.26896576,647.24,646.91,1.54008102]
[1749377195966,0.26896576,647.24,646.92,1.54008102]
[1749377197162,0.26896576,647.24,646.93,1.54008102]
[1749377199063,0.26896576,647.24,646.94,1.54008102]
[1749377205766,0.26896576,647.24,646.82,1.54008102]
[1749377210273,0.26896576,647.24,646.81,1.54008102]
[1749377215778,0.26896576,647.24,646.89,1.54008102]
[1749377216277,0.26896576,647.24,646.87,1.54008102]
[1749377219882,0.26896576,647.24,646.88,1.54008102]
[1749377221381,0.26896576,647.24,646.87,1.54008102]
[1749377221780,0.26896576,647.24,646.88,1.54008102]
[1749377222181,0.26896576,647.24,646.89,1.54008102]
[1749377222682,0.26896576,647.24,646.88,1.54008102]
[1749377224379,0.26896576,647.24,646.89,1.54008102]
[1749377225484,0.26896576,647.24,646.83,1.54008102]
[1749377226081,0.26896576,647.24,646.84,1.54008102]
[1749377226283,0.26896576,647.24,646.83,1.54008102]
[1749377226885,0.26896576,647.24,646.82,1.54008102]
[1749377229787,0.26896576,647.24,646.73,1.54008102]
[1749377230082,0.26896576,647.24,646.71,1.54008102]
[1749377230582,0.26896576,647.24,646.7,1.54008102]
[1749377232188,0.26896576,647.24,646.69,1.54008102]
[1749377232382,0.26896576,647.24,646.68,1.54008102]
[1749377233188,0.26896576,647.24,646.7,1.54008102]
[1749377233390,0.26896576,647.24,646.71,1.54008102]
[1749377233683,0.26896576,647.24,646.55,2.31012154]
[1749377233684,0.26896576,647.24,646.7,1.54008102]
[1749377234488,0.26896576,647.24,646.69,1.54008102]
[1749377238586,0.26896576,647.24,646.68,1.54008102]
[1749377239590,0.26896576,647.24,646.75,1.54008102]
[1749377240188,0.26896576,647.24,646.74,1.54008102]
[1749377241087,0.26896576,647.24,646.73,1.54008102]
[1749377241887,0.26896576,647.24,645.98,0.26901878]
[1749377241888,0.26896576,647.24,646.74,1.54008102]
[1749377242787,0.26896576,647.24,646.76,1.54008102]
[1749377243590,0.26896576,647.24,646.77,1.54008102]
[1749377243989,0.26896576,647.24,646.76,1.54008102]
[1749377244393,0.26896576,647.24,646.75,1.54008102]
[1749377244892,0.26896576,647.24,646.73,1.54008102]
[1749377245089,0.26896576,647.24,646.74,1.54008102]
[1749377245292,0.26896576,647.24,646.73,1.54008102]
[1749377245989,0.26896576,647.24,646.72,1.54008102]
[1749377246692,0.26896576,647.24,646.71,1.54008102]
[1749377247594,0.26896576,647.24,646.57,2.31012154]
[1749377247595,0.26896576,647.24,646.7,1.54008102]
[1749377247797,0.26896576,647.24,646.71,1.54008102]
[1749377247990,0.26896576,647.24,646.57,2.31012154]
[1749377247991,0.26896576,647.24,646.7,1.54008102]
[1749377248192,0.26896576,647.24,646.69,1.54008102]
[1749377248995,0.26896576,647.24,646.68,1.54008102]
[1749377249592,0.26896576,647.24,646.69,1.54008102]
[1749377251298,0.26896576,647.24,646.68,1.54008102]
[1749377252598,0.26896576,647.24,646.67,1.54008102]
[1749377253300,0.26896576,647.24,646.68,1.54008102]
[1749377253694,0.26896576,647.24,646.67,1.54008102]
[1749377254597,0.26896576,647.24,646.68,1.54008102]
[1749377255596,0.26896576,647.24,646.67,1.54008102]
[1749377256698,0.26896576,647.24,646.68,1.54008102]
[1749377258703,0.26896576,647.24,646.67,1.54008102]
[1749377259603,0.26896576,647.24,646.68,1.54008102]
[1749377259808,0.26896576,647.24,646.67,1.54008102]
[1749377261504,0.26896576,647.24,646.68,1.54008102]
[1749377261906,0.26896576,647.24,646.67,1.54008102]
[1749377262206,0.26896576,647.24,646.68,1.54008102]
[1749377263711,0.26896576,647.24,646.63,1.54008102]
[1749377268315,0.57797014,647.24,646.64,1.54008102]
[1749377268514,0.30900916,647.23,646.64,1.54008102]
[1749377269709,0.30900916,647.23,646.65,1.54008102]
[1749377270915,0.30900916,647.23,646.66,1.54008102]
[1749377271914,0.30900916,647.23,646.67,1.54008102]
[1749377272712,0.30900916,647.23,646.68,1.54008102]
[1749377273516,0.30900916,647.23,646.74,1.54008102]
[1749377273711,0.30900916,647.23,646.78,1.54008102]
[1749377276114,0.30900916,647.23,646.79,1.54008102]
[1749377276320,0.30900916,647.23,646.78,1.54008102]
[1749377277318,0.30900916,647.23,646.79,1.54008102]
[1749377279318,0.30900916,647.23,646.8,1.54008102]
[1749377283018,0.30900916,647.23,646.75,1.54008102]
[1749377283719,0.30900916,647.23,646.76,1.54008102]
[1749377283917,0.30900916,647.23,646.75,1.54008102]
[1749377286427,0.30900916,647.23,646.76,1.54008102]
[1749377288421,0.30900916,647.23,646.77,1.54008102]
[1749377289022,0.30900916,647.23,646.73,1.54008102]
[1749377289423,0.30900916,647.23,646.74,1.54008102]
[1749377292730,3.19140509,647.23,646.77,1.54008102]
[1749377292931,1.6703099,647.22,646.76,1.54008102]
[1749377293130,0.30901871,647.21,646.76,1.54008102]
[1749377293826,0.30901871,647.21,645.91,0.2690323]
[1749377293827,0.30901871,647.21,646.77,1.54008102]
[1749377294031,3.19161482,647.21,646.77,1.54008102]
[1749377294228,2.88259611,647.2,646.77,1.54008102]
[1749377294431,2.08366755,647.19,646.77,1.54008102]
[1749377294633,1.21213635,647.18,646.77,1.54008102]
[1749377294826,1.77463929,647.18,646.77,1.54008102]
[1749377295031,0.56042923,647.18,646.77,1.54008102]
[1749377295230,0.30902826,647.19,646.77,1.54008102]
[1749377298032,1.97731961,647.19,646.77,1.54008102]
[1749377298232,0.30902826,647.19,646.77,1.54008102]
[1749377298632,0.30902826,647.19,646.76,1.54008102]
[1749377298833,0.30902826,647.19,646.77,1.54008102]